fUSD/lending_fUSD_20250611
["ID","MTS","AMOUNT","RATE_DAILY","PERIOD"]
[365455576,1749679872722,-2081.5642378,0.0002,2]
[365455577,1749679873096,-500.0,0.00018899,2]
[365455578,1749679873106,-152.32,0.00018899,2]
[365455579,1749679873117,-347.68,0.00018899,2]
[365455580,1749679873126,-500.0,0.00018899,2]
[365455581,1749679873136,-119.4739,0.00019178,2]
[365455582,1749679873570,-400.0,0.000188,6]
[365455583,1749679873579,-426.86043105,0.00018899,2]
[365455584,1749679873588,-26.77442645,0.00018899,2]
[365455585,1749679928001,352.94,0.00013699,2]
[365455587,1749679966436,500.0,0.00016384,2]
[365455588,1749679967355,500.0,0.00016384,2]
[365455589,1749679991067,900.0,0.00024,120]
[365455592,1749680098061,600.00847613,0.0002,60]
[365455593,1749680165268,233.146891,0.0002,29]
[365455594,1749680187171,500.0,0.00016384,2]
[365455595,1749680191670,500.0,0.00016384,2]
[365455596,1749680216938,150.0,0.00018,7]
[365455597,1749680290570,682.8,0.00017995,2]
[365455598,1749680297694,200.0,0.00020001,30]
[365455599,1749680343871,167.59,0.00017996,2]
[365455602,1749680416905,1230.68,0.00016036,2]
[365455603,1749680425119,1956.91137284,0.00024658,120]
[365455604,1749680426544,200.0,0.00017935,2]
[365455605,1749680519248,150.0,0.00017917,2]
[365455606,1749680651671,3568.38,0.00017939,2]
[365455607,1749680689686,2325.37,0.00017939,2]
[365455609,1749680716046,666.0,0.00017935,2]
[365455610,1749680753691,2817.97151773,0.0001798,2]
[365455611,1749680753712,2258.21788691,0.0001798,2]
[365455612,1749680771801,204.0,0.00017247,2]
[365455613,1749680825733,1517.64,0.000153,2]
[365455614,1749680829454,591.66662995,0.00015,2]
[365455615,1749680839444,2064.41266534,0.0001305,2]
[365455616,1749680841116,-1000.0,0.00018035,2]
[365455617,1749680841143,-308.13217661,0.00018066,2]
[365455618,1749680855253,-301.92324143,0.00018,2]
[365455619,1749680869190,-198.07675857,0.00018,2]
[365455620,1749680877843,258.14548993,0.000179,2]
[365455621,1749680882336,300.0,0.00017999,2]
[365455622,1749680913391,500.0,0.00017999,2]
[365455623,1749680913427,500.0,0.00017999,2]
[365455624,1749680913461,500.0,0.00017999,2]
[365455625,1749680913513,389.57525431,0.00017999,2]
[365455626,1749680913552,500.0,0.00017999,2]
[365455627,1749680913619,500.0,0.00017999,2]
[365455628,1749680913679,500.0,0.00017999,2]
[365455629,1749680913730,210.33138024,0.00017999,2]
[365455630,1749680916276,4195.299999,0.000151,2]
[365455631,1749680916738,492.96513313,0.000154,2]
[365455633,1749680921541,204.0,0.00017247,2]
[365455641,1749680927099,335.29,0.00013699,2]
[365455642,1749680930764,465.61206997,0.000179,2]
[365455643,1749680936821,465.61206995,0.00017917,2]
[365455644,1749680942725,465.61206995,0.00017933,2]
[365455649,1749680953873,9762.33192275,0.000179,2]
[365455650,1749680953898,9195.4872743,0.000179,2]
[365455652,1749680998182,17985.22529713,0.00017888,2]
[365455653,1749680998207,5914.77470287,0.00017888,2]
[365455654,1749681001619,1200.0,0.00017999,2]
[365455655,1749681001658,300.0,0.00017999,2]
[365455656,1749681001997,300.0,0.00017999,2]
[365455666,1749681032299,-5420.415,0.00018,2]
[365455667,1749681032310,-2170.49999116,0.00018,2]
[365455668,1749681032321,-2755.0,0.00018,2]
[365455669,1749681032526,-143.08500884,0.00018,2]
[365455670,1749681032536,-4385.91499116,0.00018,2]
[365455671,1749681032555,-749.03462249,0.00018,2]
[365455677,1749681033011,-11041.038,0.00018,2]
[365455678,1749681033023,-367.335,0.00018,2]
[365455686,1749681038408,-36977.15753056,0.00018,2]
[365455687,1749681038418,-300.0,0.00018033,2]
[365455688,1749681038428,-785.56782339,0.00018066,2]
[365455689,1749681038438,-2669.64187006,0.000181,2]
[365455690,1749681038447,-166.09,0.00018165,2]
[365455691,1749681038457,-406.59,0.0001825,2]
[365455692,1749681038467,-899.78,0.00018279,2]
[365455693,1749681038476,-1230.68,0.000183,2]
[365455694,1749681038486,-300.24,0.00018354,2]
[365455695,1749681038495,-500.12,0.00018362,2]
[365455696,1749681038504,-303.1,0.00018369,2]
[365455697,1749681038514,-305.48,0.00018369,2]
[365455698,1749681038523,-300.0,0.00018444,2]
[365455699,1749681038532,-304.91,0.00018445,2]
[365455700,1749681038542,-305.08,0.00018474,2]
[365455701,1749681038551,-166.67,0.00018536,2]
[365455702,1749681038561,-204.0,0.00018542,3]
[365455703,1749681038570,-151.0,0.0001875,2]
[365455704,1749681038579,-207.4,0.0001875,2]
[365455705,1749681038589,-632.35149661,0.00018878,2]
[365455706,1749681038598,-461.31,0.0001888,2]
[365455707,1749681038607,-300.0,0.000189,6]
[365455708,1749681038617,-1037.71766038,0.000189,2]
[365455709,1749681038629,-1037.7176603,0.00018934,2]
[365455710,1749681038638,-1037.7176603,0.00018969,2]
[365455711,1749681038648,-1000.0,0.00018978,2]
[365455713,1749681038657,-5735.87293743,0.00018994,2]
[365455715,1749681038667,-250.0,0.00019,2]
[365455717,1749681038676,-905.07050416,0.00019,2]
[365455719,1749681038684,-1037.7176603,0.00019003,2]
[365455721,1749681038694,-1037.7176603,0.00019038,2]
[365455723,1749681038703,-461.31,0.00019041,2]
[365455725,1749681038712,-796.98,0.00019041,2]
[365455727,1749681038722,-632.33,0.00019042,2]
[365455729,1749681038730,-905.07050405,0.00019047,2]
[365455731,1749681038739,-6735.76378453,0.00019063,2]
[365455733,1749681038748,-1037.7176603,0.00019072,2]
[365455735,1749681038758,-1078.0,0.00019073,2]
[365455737,1749681038767,-500.0,0.00019077,2]
[365455739,1749681038776,-206.70533375,0.00019077,2]
[365455741,1749681038785,-385.73579023,0.00019077,2]
[365455743,1749681038795,-295.45797627,0.00019077,2]
[365455745,1749681038805,-2983.70592991,0.00019078,2]
[365455747,1749681038814,-171.14494735,0.00019078,2]
[365455749,1749681038823,-586.4239,0.00019078,2]
[365455751,1749681038832,-2500.0,0.00019078,2]
[365455752,1749681038841,-2369.1735,0.00019078,2]
[365455755,1749681038851,-1000.0,0.00019078,2]
[365455756,1749681038860,-73522.2238,0.00019078,2]
[365455758,1749681038870,-6756.7046,0.00019078,2]
[365455761,1749681038880,-227.8361,0.00019078,2]
[365455763,1749681038889,-271.9607,0.00019078,2]
[365455765,1749681038898,-169.13,0.0001909,2]
[365455766,1749681038908,-905.07050405,0.00019094,2]
[365455768,1749681038917,-5735.87293742,0.00019095,2]
[365455770,1749681038927,-700.0,0.000191,6]
[365455773,1749681038936,-632.33,0.000191,2]
[365455774,1749681038946,-1037.7176603,0.00019107,2]
[365455776,1749681038955,-500.0,0.00019124,2]
[365455779,1749681038965,-500.0,0.00019124,2]
[365455781,1749681038975,-1037.7176603,0.00019141,2]
[365455783,1749681038985,-905.07050405,0.00019141,2]
[365455785,1749681038993,-169.13,0.00019168,2]
[365455786,1749681039002,-169.13,0.00019168,2]
[365455788,1749681039012,-1118.5,0.00019168,2]
[365455790,1749681039021,-2983.70592984,0.00019169,2]
[365455792,1749681039030,-628.29866768,0.00019173,2]
[365455794,1749681039039,-173.85680973,0.00019173,2]
[365455796,1749681039050,-500.0,0.00019173,2]
[365455798,1749681039059,-520.08763609,0.00019173,2]
[365455801,1749681039069,-500.0,0.00019173,2]
[365455802,1749681039079,-159.91492896,0.00019173,2]
[365455804,1749681039088,-500.0,0.00019173,2]
[365455806,1749681039098,-500.0,0.00019173,2]
[365455808,1749681039107,-500.0,0.00019173,2]
[365455810,1749681039116,-171.86440746,0.00019173,2]
[365455812,1749681039127,-500.0,0.00019173,2]
[365455814,1749681039136,-505.02490821,0.00019173,2]
[365455816,1749681039145,-500.0,0.00019173,2]
[365455818,1749681039155,-500.0,0.00019173,2]
[365455821,1749681039164,-500.0,0.00019173,2]
[365455822,1749681039174,-500.0,0.00019173,2]
[365455824,1749681039183,-500.0,0.00019173,2]
[365455826,1749681039192,-500.0,0.00019173,2]
[365455829,1749681039201,-1037.7176603,0.00019176,2]
[365455831,1749681039211,-3954.91833111,0.00019177,2]
[365455832,1749681039220,-480.0,0.00019178,2]
[365455834,1749681039229,-410.0,0.00019178,2]
[365455837,1749681039238,-243.13078287,0.00019178,2]
[365455838,1749681039247,-470.0,0.00019178,2]
[365455841,1749681039257,-470.0,0.00019178,2]
[365455843,1749681039266,-450.0,0.00019178,2]
[365455844,1749681039275,-430.0,0.00019178,2]
[365455869,1749681039500,-490.0,0.00019178,2]
[365455871,1749681039513,-490.0,0.00019178,2]
[365455873,1749681039522,-490.0,0.00019178,2]
[365455875,1749681039531,-417.9416168,0.00019178,2]
[365455877,1749681039540,-480.0,0.00019178,2]
[365455879,1749681039549,-480.0,0.00019178,2]
[365455881,1749681039559,-480.0,0.00019178,2]
[365455883,1749681039568,-480.0,0.00019178,2]
[365455885,1749681039577,-490.0,0.00019178,2]
[365455887,1749681039586,-480.0,0.00019178,2]
[365455889,1749681039595,-490.0,0.00019178,2]
[365455891,1749681039604,-490.0,0.00019178,2]
[365455893,1749681039613,-420.0,0.00019178,2]
[365455896,1749681039624,-250.0,0.00019178,2]
[365455897,1749681039633,-490.0,0.00019178,2]
[365455899,1749681039642,-490.0,0.00019178,2]
[365455901,1749681039652,-490.0,0.00019178,2]
[365455903,1749681039661,-480.0,0.00019178,2]
[365455905,1749681039670,-490.0,0.00019178,2]
[365455907,1749681039679,-490.0,0.00019178,2]
[365455909,1749681039688,-480.0,0.00019178,2]
[365455911,1749681039698,-490.0,0.00019178,2]
[365455913,1749681039707,-239.84439535,0.00019178,2]
[365455915,1749681039716,-508.2891442,0.00019178,2]
[365455917,1749681039726,-490.0,0.00019178,2]
[365455919,1749681039736,-490.0,0.00019178,2]
[365455921,1749681039746,-420.0,0.00019178,2]
[365455923,1749681039756,-490.0,0.00019178,2]
[365455925,1749681039766,-490.0,0.00019178,2]
[365455927,1749681039775,-480.0,0.00019178,2]
[365455929,1749681039784,-490.0,0.00019178,2]
[365455931,1749681039794,-490.0,0.00019178,2]
[365455933,1749681039803,-490.0,0.00019178,2]
[365455935,1749681039813,-490.0,0.00019178,2]
[365455937,1749681039822,-490.0,0.00019178,2]
[365455939,1749681039831,-490.0,0.00019178,2]
[365455941,1749681039840,-490.0,0.00019178,2]
[365455943,1749681039850,-490.0,0.00019178,2]
[365455945,1749681039861,-490.0,0.00019178,2]
[365455947,1749681039873,-490.0,0.00019178,2]
[365455949,1749681039882,-490.0,0.00019178,2]
[365455951,1749681039892,-480.0,0.00019178,2]
[365455953,1749681039902,-490.0,0.00019178,2]
[365455955,1749681039912,-490.0,0.00019178,2]
[365455957,1749681039921,-480.0,0.00019178,2]
[365455959,1749681039930,-480.0,0.00019178,2]
[365455961,1749681039939,-490.0,0.00019178,2]
[365455963,1749681039949,-480.0,0.00019178,2]
[365455965,1749681039958,-362.54025413,0.00019178,2]
[365455967,1749681039967,-420.0,0.00019178,2]
[365455969,1749681039977,-490.0,0.00019178,2]
[365455971,1749681039987,-480.0,0.00019178,2]
[365455973,1749681039997,-480.0,0.00019178,2]
[365455975,1749681040006,-490.0,0.00019178,2]
[365455977,1749681040015,-480.0,0.00019178,2]
[365455979,1749681040025,-480.0,0.00019178,2]
[365455981,1749681040034,-490.0,0.00019178,2]
[365455983,1749681040043,-490.0,0.00019178,2]
[365455985,1749681040053,-480.0,0.00019178,2]
[365455987,1749681040063,-490.0,0.00019178,2]
[365455989,1749681040072,-480.0,0.00019178,2]
[365455991,1749681040082,-490.0,0.00019178,2]
[365455993,1749681040093,-480.0,0.00019178,2]
[365455995,1749681040102,-490.0,0.00019178,2]
[365455998,1749681040113,-490.0,0.00019178,2]
[365456001,1749681040124,-490.0,0.00019178,2]
[365456003,1749681040133,-490.0,0.00019178,2]
[365456006,1749681040143,-490.0,0.00019178,2]
[365456008,1749681040152,-490.0,0.00019178,2]
[365456010,1749681040162,-480.0,0.00019178,2]
[365456012,1749681040171,-490.0,0.00019178,2]
[365456014,1749681040180,-275.51184442,0.00019178,2]
[365456016,1749681040189,-480.0,0.00019178,2]
[365456017,1749681040198,-490.0,0.00019178,2]
[365456019,1749681040208,-305.31475367,0.00019178,2]
[365456022,1749681040218,-490.0,0.00019178,2]
[365456024,1749681040227,-480.0,0.00019178,2]
[365456026,1749681040237,-490.0,0.00019178,2]
[365456027,1749681040248,-490.0,0.00019178,2]
[365456029,1749681040257,-490.0,0.00019178,2]
[365456031,1749681040267,-490.0,0.00019178,2]
[365456033,1749681040277,-490.0,0.00019178,2]
[365456035,1749681040286,-490.0,0.00019178,2]
[365456037,1749681040296,-490.0,0.00019178,2]
[365456039,1749681040305,-490.0,0.00019178,2]
[365456042,1749681040314,-490.0,0.00019178,2]
[365456044,1749681040323,-490.0,0.00019178,2]
[365456046,1749681040333,-490.0,0.00019178,2]
[365456049,1749681040342,-480.0,0.00019178,2]
[365456050,1749681040356,-611.07287766,0.00019178,2]
[365456052,1749681040365,-480.0,0.00019178,2]
[365456055,1749681040376,-490.0,0.00019178,2]
[365456057,1749681040386,-490.0,0.00019178,2]
[365456058,1749681040398,-490.0,0.00019178,2]
[365456060,1749681040407,-490.0,0.00019178,2]
[365456062,1749681040416,-490.0,0.00019178,2]
[365456064,1749681040427,-490.0,0.00019178,2]
[365456066,1749681040435,-490.0,0.00019178,2]
[365456068,1749681040445,-490.0,0.00019178,2]
[365456070,1749681040453,-490.0,0.00019178,2]
[365456072,1749681040462,-490.0,0.00019178,2]
[365456074,1749681040471,-460.0,0.00019178,2]
[365456076,1749681040480,-490.0,0.00019178,2]
[365456078,1749681040490,-490.0,0.00019178,2]
[365456080,1749681040499,-490.0,0.00019178,2]
[365456082,1749681040508,-490.0,0.00019178,2]
[365456084,1749681040517,-490.0,0.00019178,2]
[365456086,1749681040526,-490.0,0.00019178,2]
[365456088,1749681040535,-490.0,0.00019178,2]
[365456090,1749681040544,-490.0,0.00019178,2]
[365456092,1749681040554,-490.0,0.00019178,2]
[365456094,1749681040564,-490.0,0.00019178,2]
[365456096,1749681040573,-490.0,0.00019178,2]
[365456098,1749681040582,-490.0,0.00019178,2]
[365456100,1749681040592,-490.0,0.00019178,2]
[365456102,1749681040602,-490.0,0.00019178,2]
[365456104,1749681040612,-490.0,0.00019178,2]
[365456106,1749681040621,-490.0,0.00019178,2]
[365456108,1749681040631,-269.54399674,0.00019178,2]
[365456110,1749681040640,-490.0,0.00019178,2]
[365456112,1749681040651,-490.0,0.00019178,2]
[365456114,1749681040660,-577.0,0.00019178,2]
[365456116,1749681040670,-150.15413755,0.00019178,2]
[365456118,1749681040679,-490.0,0.00019178,2]
[365456120,1749681040688,-490.0,0.00019178,2]
[365456122,1749681040697,-490.0,0.00019178,2]
[365456124,1749681040707,-490.0,0.00019178,2]
[365456126,1749681040715,-490.0,0.00019178,2]
[365456128,1749681040724,-443.47294183,0.00019178,2]
[365456130,1749681040733,-490.0,0.00019178,2]
[365456132,1749681040742,-490.0,0.00019178,2]
[365456134,1749681040752,-490.0,0.00019178,2]
[365456136,1749681040761,-490.0,0.00019178,2]
[365456138,1749681040770,-490.0,0.00019178,2]
[365456140,1749681040779,-490.0,0.00019178,2]
[365456142,1749681040789,-480.0,0.00019178,2]
[365456144,1749681040798,-920.56,0.00019178,2]
[365456146,1749681040808,-633.85,0.00019178,2]
[365456148,1749681040817,-490.0,0.00019178,2]
[365456151,1749681040827,-490.0,0.00019178,2]
[365456153,1749681040836,-490.0,0.00019178,2]
[365456154,1749681040846,-490.0,0.00019178,2]
[365456155,1749681040855,-490.0,0.00019178,2]
[365456156,1749681040864,-490.0,0.00019178,2]
[365456157,1749681040876,-480.0,0.00019178,2]
[365456158,1749681040885,-490.0,0.00019178,2]
[365456159,1749681040894,-490.0,0.00019178,2]
[365456160,1749681040904,-490.0,0.00019178,2]
[365456161,1749681040913,-490.0,0.00019178,2]
[365456162,1749681040922,-490.0,0.00019178,2]
[365456163,1749681040932,-480.0,0.00019178,2]
[365456164,1749681040941,-490.0,0.00019178,2]
[365456165,1749681040951,-490.0,0.00019178,2]
[365456167,1749681040960,-490.0,0.00019178,2]
[365456169,1749681040969,-490.0,0.00019178,2]
[365456171,1749681040978,-490.0,0.00019178,2]
[365456173,1749681040988,-743.12,0.00019178,2]
[365456175,1749681040997,-490.0,0.00019178,2]
[365456177,1749681041007,-490.0,0.00019178,2]
[365456179,1749681041016,-490.0,0.00019178,2]
[365456181,1749681041026,-490.0,0.00019178,2]
[365456183,1749681041035,-490.0,0.00019178,2]
[365456185,1749681041045,-490.0,0.00019178,2]
[365456187,1749681041053,-490.0,0.00019178,2]
[365456189,1749681041063,-480.0,0.00019178,2]
[365456191,1749681041072,-480.0,0.00019178,2]
[365456193,1749681041081,-490.0,0.00019178,2]
[365456195,1749681041090,-490.0,0.00019178,2]
[365456197,1749681041099,-490.0,0.00019178,2]
[365456199,1749681041108,-480.0,0.00019178,2]
[365456201,1749681041117,-490.0,0.00019178,2]
[365456203,1749681041128,-490.0,0.00019178,2]
[365456205,1749681041137,-490.0,0.00019178,2]
[365456207,1749681041146,-698.94,0.00019178,2]
[365456209,1749681041156,-480.0,0.00019178,2]
[365456211,1749681041165,-537.62173873,0.00019178,2]
[365456213,1749681041174,-480.0,0.00019178,2]
[365456215,1749681041184,-490.0,0.00019178,2]
[365456217,1749681041193,-490.0,0.00019178,2]
[365456219,1749681041203,-480.0,0.00019178,2]
[365456221,1749681041212,-481.40614839,0.00019178,2]
[365456223,1749681041221,-490.0,0.00019178,2]
[365456224,1749681041230,-420.0,0.00019178,2]
[365456226,1749681041239,-490.0,0.00019178,2]
[365456228,1749681041248,-490.0,0.00019178,2]
[365456230,1749681041257,-490.0,0.00019178,2]
[365456232,1749681041267,-199.79262427,0.00019178,2]
[365456234,1749681041276,-490.0,0.00019178,2]
[365456236,1749681041285,-480.0,0.00019178,2]
[365456238,1749681041294,-490.0,0.00019178,2]
[365456240,1749681041304,-490.0,0.00019178,2]
[365456242,1749681041313,-490.0,0.00019178,2]
[365456244,1749681041322,-490.0,0.00019178,2]
[365456246,1749681041332,-490.0,0.00019178,2]
[365456248,1749681041341,-501.43875995,0.00019178,2]
[365456250,1749681041353,-564.97,0.00019178,2]
[365456252,1749681041362,-420.70389715,0.00019178,2]
[365456254,1749681041372,-490.0,0.00019178,2]
[365456256,1749681041381,-294.96708842,0.00019178,2]
[365456258,1749681041391,-490.0,0.00019178,2]
[365456260,1749681041401,-490.0,0.00019178,2]
[365456262,1749681041410,-480.0,0.00019178,2]
[365456264,1749681041419,-490.0,0.00019178,2]
[365456266,1749681041429,-490.0,0.00019178,2]
[365456268,1749681041438,-490.0,0.00019178,2]
[365456270,1749681041447,-490.0,0.00019178,2]
[365456272,1749681041456,-490.0,0.00019178,2]
[365456274,1749681041465,-1059.95,0.00019178,2]
[365456276,1749681041474,-490.0,0.00019178,2]
[365456278,1749681041483,-230.27866346,0.00019178,2]
[365456280,1749681041493,-490.0,0.00019178,2]
[365456282,1749681041502,-490.0,0.00019178,2]
[365456284,1749681041511,-420.0,0.00019178,2]
[365456286,1749681041521,-490.0,0.00019178,2]
[365456288,1749681041529,-490.0,0.00019178,2]
[365456290,1749681041539,-490.0,0.00019178,2]
[365456292,1749681041548,-490.0,0.00019178,2]
[365456294,1749681041556,-490.0,0.00019178,2]
[365456296,1749681041565,-490.0,0.00019178,2]
[365456298,1749681041575,-490.0,0.00019178,2]
[365456300,1749681041584,-490.0,0.00019178,2]
[365456302,1749681041593,-490.0,0.00019178,2]
[365456304,1749681041602,-343.58740013,0.00019178,2]
[365456306,1749681041611,-490.0,0.00019178,2]
[365456308,1749681041622,-490.0,0.00019178,2]
[365456310,1749681041631,-490.0,0.00019178,2]
[365456312,1749681041640,-490.0,0.00019178,2]
[365456314,1749681041649,-422.8618455,0.00019178,2]
[365456316,1749681041658,-490.0,0.00019178,2]
[365456318,1749681041667,-490.0,0.00019178,2]
[365456320,1749681041676,-470.0,0.00019178,2]
[365456322,1749681041686,-480.0,0.00019178,2]
[365456324,1749681041695,-1170.28,0.00019178,2]
[365456326,1749681041704,-490.0,0.00019178,2]
[365456328,1749681041715,-480.0,0.00019178,2]
[365456331,1749681041724,-490.0,0.00019178,2]
[365456332,1749681041733,-490.0,0.00019178,2]
[365456334,1749681041742,-380.0,0.00019178,2]
[365456336,1749681041751,-490.0,0.00019178,2]
[365456339,1749681041760,-556.35,0.00019178,2]
[365456340,1749681041769,-490.0,0.00019178,2]
[365456342,1749681041779,-490.0,0.00019178,2]
[365456345,1749681041788,-490.0,0.00019178,2]
[365456347,1749681041797,-490.0,0.00019178,2]
[365456348,1749681041807,-490.0,0.00019178,2]
[365456350,1749681041816,-490.0,0.00019178,2]
[365456353,1749681041825,-490.0,0.00019178,2]
[365456355,1749681041835,-490.0,0.00019178,2]
[365456357,1749681041844,-490.0,0.00019178,2]
[365456359,1749681041853,-490.0,0.00019178,2]
[365456360,1749681041862,-490.0,0.00019178,2]
[365456362,1749681041872,-490.0,0.00019178,2]
[365456364,1749681041881,-480.0,0.00019178,2]
[365456366,1749681041890,-490.0,0.00019178,2]
[365456368,1749681041899,-226.22947708,0.00019178,2]
[365456371,1749681041908,-420.0,0.00019178,2]
[365456372,1749681041917,-489.99704302,0.00019178,2]
[365456374,1749681041926,-490.0,0.00019178,2]
[365456377,1749681041935,-837.36,0.00019178,2]
[365456378,1749681041945,-618.71,0.00019178,2]
[365456381,1749681041955,-559.78,0.00019178,2]
[365456383,1749681041965,-421.41303659,0.00019178,2]
[365456385,1749681041974,-538.77048822,0.00019178,2]
[365456387,1749681041983,-490.0,0.00019178,2]
[365456388,1749681041992,-538.99588997,0.00019178,2]
[365456391,1749681042002,-480.0,0.00019178,2]
[365456393,1749681042011,-480.0,0.00019178,2]
[365456394,1749681042022,-490.0,0.00019178,2]
[365456397,1749681042031,-490.0,0.00019178,2]
[365456398,1749681042040,-480.0,0.00019178,2]
[365456400,1749681042049,-582.46943949,0.00019178,2]
[365456403,1749681042059,-426.66436769,0.00019178,2]
[365456405,1749681042068,-677.05,0.00019178,2]
[365456407,1749681042078,-490.0,0.00019178,2]
[365456408,1749681042087,-500.0,0.00019178,2]
[365456410,1749681042097,-553.84683566,0.00019178,2]
[365456412,1749681042107,-490.0,0.00019178,2]
[365456414,1749681042116,-490.0,0.00019178,2]
[365456416,1749681042128,-490.0,0.00019178,2]
[365456418,1749681042137,-502.9914117,0.00019178,2]
[365456420,1749681042147,-490.0,0.00019178,2]
[365456422,1749681042156,-490.0,0.00019178,2]
[365456424,1749681042166,-480.0,0.00019178,2]
[365456426,1749681042176,-490.0,0.00019178,2]
[365456428,1749681042186,-490.0,0.00019178,2]
[365456430,1749681042195,-490.0,0.00019178,2]
[365456432,1749681042204,-490.0,0.00019178,2]
[365456434,1749681042213,-490.0,0.00019178,2]
[365456435,1749681042222,-490.0,0.00019178,2]
[365456437,1749681042231,-480.0,0.00019178,2]
[365456439,1749681042241,-490.0,0.00019178,2]
[365456442,1749681042251,-490.0,0.00019178,2]
[365456443,1749681042261,-490.0,0.00019178,2]
[365456445,1749681042270,-480.0,0.00019178,2]
[365456448,1749681042279,-490.0,0.00019178,2]
[365456450,1749681042289,-490.0,0.00019178,2]
[365456452,1749681042298,-748.31,0.00019178,2]
[365456454,1749681042307,-490.0,0.00019178,2]
[365456456,1749681042316,-490.0,0.00019178,2]
[365456457,1749681042325,-490.0,0.00019178,2]
[365456460,1749681042335,-490.0,0.00019178,2]
[365456462,1749681042344,-490.0,0.00019178,2]
[365456464,1749681042358,-490.0,0.00019178,2]
[365456466,1749681042367,-609.06,0.00019178,2]
[365456468,1749681042378,-490.0,0.00019178,2]
[365456470,1749681042387,-480.0,0.00019178,2]
[365456472,1749681042397,-480.0,0.00019178,2]
[365456474,1749681042407,-490.0,0.00019178,2]
[365456476,1749681042416,-480.0,0.00019178,2]
[365456478,1749681042427,-490.0,0.00019178,2]
[365456480,1749681042436,-490.0,0.00019178,2]
[365456482,1749681042445,-490.0,0.00019178,2]
[365456484,1749681042455,-706.85,0.00019178,2]
[365456486,1749681042464,-480.0,0.00019178,2]
[365456488,1749681042473,-490.0,0.00019178,2]
[365456490,1749681042483,-490.0,0.00019178,2]
[365456491,1749681042492,-500.0,0.00019178,2]
[365456493,1749681042501,-490.0,0.00019178,2]
[365456495,1749681042510,-420.0,0.00019178,2]
[365456497,1749681042519,-683.53,0.00019178,2]
[365456499,1749681042529,-490.0,0.00019178,2]
[365456501,1749681042538,-490.0,0.00019178,2]
[365456503,1749681042547,-490.0,0.00019178,2]
[365456505,1749681042556,-490.0,0.00019178,2]
[365456507,1749681042565,-490.0,0.00019178,2]
[365456509,1749681042574,-490.0,0.00019178,2]
[365456511,1749681042583,-490.0,0.00019178,2]
[365456513,1749681042595,-490.0,0.00019178,2]
[365456515,1749681042605,-490.0,0.00019178,2]
[365456517,1749681042614,-490.0,0.00019178,2]
[365456519,1749681042624,-413.67973522,0.00019178,2]
[365456521,1749681042635,-490.0,0.00019178,2]
[365456523,1749681042644,-490.0,0.00019178,2]
[365456525,1749681042653,-490.0,0.00019178,2]
[365456527,1749681042662,-490.0,0.00019178,2]
[365456529,1749681042671,-480.0,0.00019178,2]
[365456531,1749681042680,-490.0,0.00019178,2]